[Event "6e festival d'échecs d'Allauch"]
[Site "Allauch, France"]
[Date "2024.08.27"]
[Round "3.3"]
[White "Petrosyan, Armen"]
[Black "Figier, Anthony"]
[Result "1/2-1/2"]
[TimeControl "1 h 30 min (+30s/coup)"]
[WhiteElo "2344"]
[BlackElo "2000"]

1. Nf3 {[%clk 01:30:25]} {[%emt 00:00:34]} Nf6 {[%clk 01:29:17]} {[%emt
00:01:43]} 2. g3 {[%clk 01:30:48]} {[%emt 00:00:07]} d5 {[%clk 01:29:43]}
{[%emt 00:00:04]} 3. Bg2 {[%clk 01:31:12]} {[%emt 00:00:06]} c6 {[%clk
01:30:02]} {[%emt 00:00:12]} 4. O-O {[%clk 01:31:33]} {[%emt 00:00:09]} Bf5
{[%clk 01:30:06]} {[%emt 00:00:25]} 5. d3 {[%clk 01:31:27]} {[%emt 00:00:36]}
h6 {[%clk 01:29:46]} {[%emt 00:00:50]} 6. c4 {[%clk 01:31:13]} {[%emt
00:00:45]} e6 {[%clk 01:27:51]} {[%emt 00:02:25]} 7. Qb3 {[%clk 01:30:47]}
{[%emt 00:00:56]} Qc8 {[%clk 01:27:02]} {[%emt 00:01:19]} 8. Nc3 {[%clk
01:27:18]} {[%emt 00:03:59]} Nbd7 {[%clk 01:23:19]} {[%emt 00:04:13]} 9. cxd5
{[%clk 01:27:01]} {[%emt 00:00:47]} exd5 {[%clk 01:23:40]} {[%emt 00:00:09]} 10.
Be3 {[%clk 01:15:30]} {[%emt 00:12:01]} Bd6 {[%clk 01:14:48]} {[%emt 00:09:21]}
11. Rac1 {[%clk 01:15:06]} {[%emt 00:00:54]} Qb8 {[%clk 01:15:09]} {[%emt
00:00:09]} 12. Bd4 {[%clk 01:12:10]} {[%emt 00:03:26]} O-O {[%clk 01:14:39]}
{[%emt 00:01:00]} 13. Nh4 {[%clk 01:07:47]} {[%emt 00:04:54]} Bh7 {[%clk
01:10:06]} {[%emt 00:05:03]} 14. e4 {[%clk 01:02:52]} {[%emt 00:05:25]} dxe4
{[%clk 01:04:33]} {[%emt 00:06:03]} 15. dxe4 {[%clk 01:01:59]} {[%emt
00:01:22]} Re8 {[%clk 01:04:48]} {[%emt 00:00:16]} 16. Rfe1 {[%clk 00:58:27]}
{[%emt 00:04:02]} a6 {[%clk 01:02:21]} {[%emt 00:02:58]} 17. Qd1 {[%clk
00:44:35]} {[%emt 00:14:21]} Bc5 {[%clk 00:59:23]} {[%emt 00:03:28]} 18. Na4
{[%clk 00:32:38]} {[%emt 00:12:28]} Bxd4 {[%clk 00:58:13]} {[%emt 00:01:39]} 19.
Qxd4 {[%clk 00:33:05]} {[%emt 00:00:04]} Qc7 {[%clk 00:57:02]} {[%emt
00:01:41]} 20. Nf5 {[%clk 00:20:26]} {[%emt 00:13:08]} Bxf5 {[%clk 00:55:30]}
{[%emt 00:02:02]} 21. exf5 {[%clk 00:20:50]} {[%emt 00:00:06]} Qa5 {[%clk
00:55:41]} {[%emt 00:00:19]} 22. Nc3 {[%clk 00:14:16]} {[%emt 00:07:03]} Qxf5
{[%clk 00:53:14]} {[%emt 00:02:58]} 23. Ne4 {[%clk 00:14:41]} {[%emt 00:00:06]}
Qa5 {[%clk 00:36:15]} {[%emt 00:17:29]} 24. b4 {[%clk 00:14:54]} {[%emt
00:00:16]} Qc7 {[%clk 00:35:54]} {[%emt 00:00:51]} 25. Nd6 {[%clk 00:13:30]}
{[%emt 00:01:54]} Rxe1+ {[%clk 00:35:27]} {[%emt 00:00:56]} 26. Rxe1 {[%clk
00:13:56]} {[%emt 00:00:04]} Nf8 {[%clk 00:35:42]} {[%emt 00:00:15]} 27. Nf5
{[%clk 00:13:47]} {[%emt 00:00:39]} Re8 {[%clk 00:33:35]} {[%emt 00:02:37]} 28.
Rxe8 {[%clk 00:03:54]} {[%emt 00:10:24]} Nxe8 {[%clk 00:33:57]} {[%emt
00:00:09]} 29. Qg4 {[%clk 00:04:20]} {[%emt 00:00:03]} Ng6 {[%clk 00:33:34]}
{[%emt 00:00:53]} 30. h4 {[%clk 00:04:31]} {[%emt 00:00:20]} Nf6 {[%clk
00:31:58]} {[%emt 00:02:06]} 31. Qd4 {[%clk 00:04:45]} {[%emt 00:00:16]} h5
{[%clk 00:28:35]} {[%emt 00:03:53]} 32. Bf1 {[%clk 00:02:19]} {[%emt 00:02:55]}
Qe5 {[%clk 00:25:24]} {[%emt 00:03:41]} 33. Qxe5 {[%clk 00:02:28]} {[%emt
00:00:21]} Nxe5 {[%clk 00:25:47]} {[%emt 00:00:07]} 34. f4 {[%clk 00:02:44]}
{[%emt 00:00:14]} Ned7 {[%clk 00:24:53]} {[%emt 00:01:24]} 35. Nd6 {[%clk
00:02:41]} {[%emt 00:00:33]} b5 {[%clk 00:24:59]} {[%emt 00:00:25]} 36. Bg2
{[%clk 00:01:02]} {[%emt 00:02:08]} Nd5 {[%clk 00:21:41]} {[%emt 00:03:49]} 37.
Bxd5 {[%clk 00:00:44]} {[%emt 00:00:48]} cxd5 {[%clk 00:22:05]} {[%emt
00:00:06]} 38. Kf2 {[%clk 00:01:10]} {[%emt 00:00:05]} Kf8 {[%clk 00:21:48]}
{[%emt 00:00:47]} 39. Ke3 {[%clk 00:01:31]} {[%emt 00:00:08]} Ke7 {[%clk
00:20:52]} {[%emt 00:01:27]} 40. Nb7 {[%clk 00:01:49]} {[%emt 00:00:12]} Nb8
{[%clk 00:16:48]} {[%emt 00:04:33]} 41. Kd4 {[%clk 00:01:50]} {[%emt 00:00:29]}
Ke6 {[%clk 00:16:18]} {[%emt 00:01:00]} 42. Kc5 {[%clk 00:01:01]} {[%emt
00:01:19]} Nd7+ {[%clk 00:15:09]} {[%emt 00:01:39]} 43. Kd4 {[%clk 00:00:47]}
{[%emt 00:00:44]} Nb8 {[%clk 00:03:32]} {[%emt 00:12:07]} 44. a3 {[%clk
00:00:53]} {[%emt 00:00:24]} Nd7 {[%clk 00:03:33]} {[%emt 00:00:28]} 45. Nd8+
{[%clk 00:01:07]} {[%emt 00:00:16]} Ke7 {[%clk 00:03:38]} {[%emt 00:00:25]} 46.
Nb7 {[%clk 00:01:25]} {[%emt 00:00:11]} Ke6 {[%clk 00:04:00]} {[%emt 00:00:08]}
47. Nd8+ {[%clk 00:01:22]} {[%emt 00:00:33]} Ke7 {[%clk 00:03:54]} {[%emt
00:00:37]} 48. Nb7 {[%clk 00:01:38]} {[%emt 00:00:13]} 1/2-1/2

[Event "6e festival d'échecs d'Allauch"]
[Site "Allauch, France"]
[Date "2024.08.27"]
[Round "3.4"]
[White "Ben Amar, Yanis"]
[Black "Durand-Benmoussa, Roman"]
[Result "1-0"]
[TimeControl "1 h 30 min (+30s/coup)"]
[WhiteElo "1980"]
[BlackElo "2109"]

1. e4 {[%clk 01:30:56]} {[%emt 00:00:03]} c5 {[%clk 01:25:42]} {[%emt
00:05:18]} 2. Nf3 {[%clk 01:31:17]} {[%emt 00:00:09]} e6 {[%clk 01:26:07]}
{[%emt 00:00:05]} 3. d4 {[%clk 01:31:32]} {[%emt 00:00:15]} cxd4 {[%clk
01:26:31]} {[%emt 00:00:06]} 4. Nxd4 {[%clk 01:31:58]} {[%emt 00:00:04]} Nf6
{[%clk 01:26:58]} {[%emt 00:00:03]} 5. Nc3 {[%clk 01:32:11]} {[%emt 00:00:17]}
Nc6 {[%clk 01:27:23]} {[%emt 00:00:05]} 6. Be3 {[%clk 01:32:31]} {[%emt
00:00:10]} Bb4 {[%clk 01:27:47]} {[%emt 00:00:06]} 7. f3 {[%clk 01:30:47]}
{[%emt 00:02:14]} d5 {[%clk 01:28:10]} {[%emt 00:00:07]} 8. Bb5 {[%clk
01:28:29]} {[%emt 00:02:48]} Bd7 {[%clk 01:27:49]} {[%emt 00:00:51]} 9. O-O
{[%clk 01:26:49]} {[%emt 00:02:11]} Bxc3 {[%clk 01:20:56]} {[%emt 00:07:22]} 10.
bxc3 {[%clk 01:26:49]} {[%emt 00:00:30]} O-O {[%clk 01:21:18]} {[%emt
00:00:09]} 11. Bd3 {[%clk 01:26:28]} {[%emt 00:00:51]} Ne5 {[%clk 01:10:27]}
{[%emt 00:11:21]} 12. Bg5 {[%clk 01:26:03]} {[%emt 00:00:54]} Bc6 {[%clk
01:03:01]} {[%emt 00:07:56]} 13. Qe2 {[%emt 00:10:54]} Rc8 {[%clk 00:57:44]} 14.
f4 {[%clk 01:21:37]} {[%emt 00:00:19]} Nxd3 {[%clk 00:56:37]} {[%emt 00:01:36]}
15. e5 {[%clk 01:18:37]} {[%emt 00:03:30]} Nc5 {[%clk 00:56:32]} {[%emt
00:00:35]} 16. exf6 {[%clk 01:18:52]} {[%emt 00:00:15]} gxf6 {[%clk 00:56:16]}
{[%emt 00:00:47]} 17. Bh6 {[%clk 01:19:15]} {[%emt 00:00:08]} Kh8 {[%clk
00:56:28]} {[%emt 00:00:18]} 18. Bxf8 {[%clk 01:19:35]} {[%emt 00:00:09]} Qxf8
{[%clk 00:56:57]} {[%emt 00:00:01]} 19. Nxc6 {[%clk 01:18:55]} {[%emt
00:01:10]} bxc6 {[%clk 00:54:02]} {[%emt 00:03:26]} 20. Qe3 {[%clk 01:17:15]}
{[%emt 00:02:09]} Qe7 {[%clk 00:53:17]} {[%emt 00:01:15]} 21. Rf3 {[%clk
01:16:24]} {[%emt 00:01:21]} Ne4 {[%clk 00:50:12]} {[%emt 00:03:35]} 22. c4
{[%clk 01:14:09]} {[%emt 00:02:45]} Rb8 {[%clk 00:50:18]} {[%emt 00:00:24]} 23.
cxd5 {[%clk 01:13:12]} {[%emt 00:01:27]} cxd5 {[%clk 00:50:43]} {[%emt
00:00:05]} 24. c4 {[%clk 01:13:10]} {[%emt 00:00:32]} Rb2 {[%clk 00:48:43]}
{[%emt 00:02:30]} 25. cxd5 {[%clk 01:12:16]} {[%emt 00:01:24]} exd5 {[%clk
00:49:05]} {[%emt 00:00:08]} 26. Qa3 {[%clk 00:54:17]} {[%emt 00:18:29]} Rb4
{[%clk 00:49:30]} {[%emt 00:00:04]} 27. Rc1 {[%clk 00:53:29]} {[%emt 00:01:18]}
Qb7 {[%clk 00:48:23]} {[%emt 00:01:37]} 28. h3 {[%clk 00:46:02]} {[%emt
00:07:57]} Kg7 {[%clk 00:48:27]} {[%emt 00:00:26]} 29. Kh2 {[%clk 00:44:30]}
{[%emt 00:02:02]} Qb6 {[%clk 00:45:56]} {[%emt 00:03:01]} 30. Rc8 {[%clk
00:42:28]} {[%emt 00:02:32]} a5 {[%clk 00:44:26]} {[%emt 00:02:00]} 31. Qe3
{[%clk 00:36:45]} {[%emt 00:06:13]} Qxe3 {[%clk 00:43:46]} {[%emt 00:01:10]} 32.
Rxe3 {[%clk 00:37:13]} {[%emt 00:00:01]} Rd4 {[%clk 00:40:30]} {[%emt
00:03:46]} 33. Ra3 {[%clk 00:34:52]} {[%emt 00:02:52]} a4 {[%clk 00:40:44]}
{[%emt 00:00:16]} 34. Ra8 {[%clk 00:34:28]} {[%emt 00:00:53]} Nc5 {[%clk
00:41:02]} {[%emt 00:00:13]} 35. f5 {[%clk 00:33:44]} {[%emt 00:01:15]} Rf4
{[%clk 00:38:08]} {[%emt 00:03:24]} 36. Rf3 {[%clk 00:32:08]} {[%emt 00:02:06]}
Rc4 {[%clk 00:37:33]} {[%emt 00:01:05]} 37. Rg3+ {[%clk 00:32:25]} {[%emt
00:00:14]} Kh6 {[%clk 00:38:02]} 38. Rd8 {[%clk 00:31:45]} {[%emt 00:01:09]}
Ne4 {[%clk 00:34:13]} {[%emt 00:04:20]} 39. Rg4 {[%clk 00:30:54]} {[%emt
00:01:20]} Rc2 {[%clk 00:27:00]} {[%emt 00:07:44]} 40. Rxd5 {[%clk 00:29:34]}
{[%emt 00:01:50]} Nd2 {[%clk 00:26:44]} {[%emt 00:00:45]} 41. Rf4 {[%clk
00:27:13]} {[%emt 00:02:51]} Rb2 {[%clk 00:20:01]} {[%emt 00:07:14]} 42. Rf2
{[%clk 00:25:02]} {[%emt 00:02:42]} Nc4 {[%clk 00:20:25]} {[%emt 00:00:05]} 43.
Rxb2 {[%clk 00:25:05]} {[%emt 00:00:26]} Nxb2 {[%clk 00:20:54]} {[%emt
00:00:02]} 44. Rd4 {[%clk 00:24:33]} {[%emt 00:01:03]} Kg5 {[%clk 00:19:54]}
{[%emt 00:01:30]} 45. g4 {[%clk 00:24:23]} {[%emt 00:00:39]} Kh4 {[%clk
00:19:57]} {[%emt 00:00:28]} 46. Rb4 {[%clk 00:24:22]} {[%emt 00:00:31]} a3
{[%clk 00:20:07]} {[%emt 00:00:20]} 47. Rb3 {[%clk 00:24:43]} {[%emt 00:00:09]}
h5 {[%clk 00:20:29]} {[%emt 00:00:09]} 48. gxh5 {[%clk 00:24:23]} {[%emt
00:00:49]} Kxh5 {[%clk 00:20:53]} {[%emt 00:00:06]} 49. Rxa3 {[%clk 00:24:39]}
{[%emt 00:00:14]} Kg5 {[%clk 00:21:20]} {[%emt 00:00:03]} 50. Ra7 {[%clk
00:24:10]} {[%emt 00:00:58]} Kxf5 {[%clk 00:21:46]} {[%emt 00:00:05]} 51. Rxf7
{[%clk 00:24:30]} {[%emt 00:00:10]} Kg6 {[%clk 00:22:12]} {[%emt 00:00:04]} 52.
Rb7 {[%clk 00:24:51]} {[%emt 00:00:09]} 1-0

[Event "6e festival d'échecs d'Allauch"]
[Site "Allauch, France"]
[Date "2024.08.27"]
[Round "3.5"]
[White "Sembel Rudelle, Gael"]
[Black "Anton, Christophe"]
[Result "1-0"]
[TimeControl "1 h 30 min (+30s/coup)"]
[WhiteElo "1624"]
[BlackElo "1697"]

1. e4 {[%clk 01:30:55]} {[%emt 00:00:04]} c5 {[%clk 01:30:57]} {[%emt
00:00:04]} 2. c3 {[%clk 01:31:19]} {[%emt 00:00:06]} d6 {[%clk 01:31:15]}
{[%emt 00:00:12]} 3. d4 {[%clk 01:30:07]} {[%emt 00:01:42]} cxd4 {[%clk
01:31:30]} {[%emt 00:00:16]} 4. cxd4 {[%clk 01:30:31]} {[%emt 00:00:07]} Nf6
{[%clk 01:31:28]} {[%emt 00:00:30]} 5. Nc3 {[%clk 01:30:55]} {[%emt 00:00:06]}
g6 {[%clk 01:31:45]} {[%emt 00:00:14]} 6. Nf3 {[%clk 01:29:07]} {[%emt
00:02:17]} Bg7 {[%clk 01:32:01]} {[%emt 00:00:14]} 7. Bc4 {[%clk 01:26:42]}
{[%emt 00:02:55]} O-O {[%clk 01:32:01]} {[%emt 00:00:31]} 8. O-O {[%clk
01:25:58]} {[%emt 00:01:14]} Bd7 {[%clk 01:29:19]} {[%emt 00:03:11]} 9. Re1
{[%clk 01:24:14]} {[%emt 00:02:14]} Qc7 {[%clk 01:26:26]} {[%emt 00:03:22]} 10.
Qb3 {[%clk 01:17:56]} {[%emt 00:06:49]} Nc6 {[%clk 01:22:17]} {[%emt 00:04:39]}
11. Bd5 {[%clk 01:13:53]} {[%emt 00:04:33]} Na5 {[%clk 01:16:27]} {[%emt
00:06:20]} 12. Qa3 {[%clk 01:12:45]} {[%emt 00:01:39]} e6 {[%clk 01:12:13]}
{[%emt 00:04:44]} 13. Bb3 {[%clk 01:12:53]} {[%emt 00:00:22]} Nxb3 {[%clk
01:12:31]} {[%emt 00:00:12]} 14. Qxb3 {[%clk 01:10:06]} {[%emt 00:03:17]} a6
{[%clk 01:10:06]} {[%emt 00:02:56]} 15. Bf4 {[%clk 01:01:48]} {[%emt 00:08:47]}
Nh5 {[%clk 01:07:08]} {[%emt 00:03:28]} 16. Be3 {[%clk 00:59:11]} {[%emt
00:03:06]} Rac8 {[%clk 01:04:06]} {[%emt 00:03:33]} 17. Rac1 {[%clk 00:57:31]}
{[%emt 00:02:10]} Qb8 {[%clk 00:58:41]} {[%emt 00:05:54]} 18. a4 {[%clk
00:53:07]} {[%emt 00:04:55]} e5 {[%clk 00:47:58]} {[%emt 00:11:13]} 19. Nd5
{[%clk 00:48:23]} {[%emt 00:05:14]} Be6 {[%clk 00:44:26]} {[%emt 00:04:02]} 20.
Rxc8 {[%clk 00:44:31]} {[%emt 00:04:22]} Rxc8 {[%clk 00:43:35]} {[%emt
00:01:20]} 21. Ng5 {[%clk 00:44:05]} {[%emt 00:00:56]} Bxd5 {[%clk 00:40:29]}
{[%emt 00:03:36]} 22. Qxd5 {[%clk 00:44:28]} {[%emt 00:00:07]} Rc7 {[%clk
00:40:40]} {[%emt 00:00:19]} 23. dxe5 {[%clk 00:43:30]} {[%emt 00:01:29]} Bxe5
{[%clk 00:36:57]} {[%emt 00:04:12]} 24. b4 {[%clk 00:33:40]} {[%emt 00:10:20]}
Nf6 {[%clk 00:29:30]} {[%emt 00:07:57]} 25. Qb3 {[%clk 00:33:35]} {[%emt
00:00:35]} Ng4 {[%clk 00:07:54]} {[%emt 00:22:05]} 26. Bb6 {[%clk 00:32:20]}
{[%emt 00:01:46]} Rd7 {[%clk 00:07:35]} {[%emt 00:00:46]} 27. Qh3 {[%clk
00:26:43]} {[%emt 00:06:09]} Bxh2+ {[%clk 00:02:51]} {[%emt 00:05:14]} 28. Kf1
{[%clk 00:25:18]} {[%emt 00:01:55]} f5 {[%clk 00:01:38]} {[%emt 00:01:44]} 29.
exf5 {[%clk 00:24:43]} {[%emt 00:01:05]} gxf5 {[%clk 00:01:53]} {[%emt
00:00:14]} 30. f3 {[%clk 00:21:52]} {[%emt 00:03:21]} Bf4 {[%clk 00:02:01]}
{[%emt 00:00:23]} 31. fxg4 {[%clk 00:21:41]} {[%emt 00:00:41]} Bxg5 {[%clk
00:02:20]} {[%emt 00:00:11]} 32. Qh5 {[%clk 00:22:02]} {[%emt 00:00:09]} h6
{[%clk 00:02:21]} {[%emt 00:00:29]} 33. Re8+ {[%clk 00:22:19]} {[%emt
00:00:13]} Kg7 {[%clk 00:01:30]} {[%emt 00:01:21]} 34. Bd4+ {[%clk 00:22:29]}
{[%emt 00:00:20]} Bf6 {[%clk 00:01:41]} {[%emt 00:00:18]} 35. Bxf6+ {[%clk
00:22:40]} {[%emt 00:00:19]} Kxf6 {[%clk 00:01:59]} {[%emt 00:00:13]} 36. Qxh6+
{[%clk 00:23:00]} {[%emt 00:00:10]} Kf7 {[%clk 00:02:05]} {[%emt 00:00:23]} 37.
Qe6+ {[%clk 00:23:25]} {[%emt 00:00:04]} Kg7 {[%clk 00:02:06]} {[%emt
00:00:29]} 38. Qxd7+ {[%clk 00:23:51]} {[%emt 00:00:04]} Kg6 {[%clk 00:02:20]}
{[%emt 00:00:16]} 39. Qxf5+ {[%clk 00:24:10]} {[%emt 00:00:12]} Kg7 {[%clk
00:02:34]} {[%emt 00:00:16]} 40. Re7+ {[%clk 00:24:22]} {[%emt 00:00:18]} Kg8
{[%clk 00:01:53]} {[%emt 00:01:11]} 41. Qh7+ {[%clk 00:24:45]} {[%emt
00:00:07]} 1-0

[Event "6e festival d'échecs d'Allauch"]
[Site "Allauch, France"]
[Date "2024.08.27"]
[Round "3.6"]
[White "Dorvaux-Valdieu, Teiva"]
[Black "Belaid, Noa"]
[Result "1/2-1/2"]
[TimeControl "1 h 30 min (+30s/coup)"]
[WhiteElo "1679"]
[BlackElo "1637"]

1. d4 {[%clk 01:30:57]} {[%emt 00:00:04]} Nf6 {[%clk 01:30:56]} {[%emt
00:00:03]} 2. Nf3 {[%clk 01:31:22]} {[%emt 00:00:06]} g6 {[%clk 01:30:55]}
{[%emt 00:00:31]} 3. e3 {[%clk 01:31:35]} {[%emt 00:00:16]} Bg7 {[%clk
01:30:50]} {[%emt 00:00:35]} 4. Bd3 {[%clk 01:31:53]} {[%emt 00:00:12]} O-O
{[%clk 01:30:46]} {[%emt 00:00:35]} 5. O-O {[%clk 01:31:16]} {[%emt 00:01:07]}
d5 {[%clk 01:29:56]} {[%emt 00:01:20]} 6. Nbd2 {[%clk 01:30:47]} {[%emt
00:00:58]} c6 {[%clk 01:29:28]} {[%emt 00:00:57]} 7. c4 {[%clk 01:30:20]}
{[%emt 00:00:57]} Re8 {[%clk 01:27:24]} {[%emt 00:02:35]} 8. b3 {[%clk
01:28:38]} {[%emt 00:02:12]} Na6 {[%clk 01:21:59]} {[%emt 00:05:55]} 9. a3
{[%clk 01:25:12]} {[%emt 00:03:56]} Nc7 {[%clk 01:20:02]} {[%emt 00:02:27]} 10.
c5 {[%clk 01:21:16]} {[%emt 00:04:27]} Nd7 {[%clk 01:18:33]} {[%emt 00:01:58]}
11. Bb2 {[%clk 01:16:14]} {[%emt 00:05:31]} Nxc5 {[%clk 01:17:30]} {[%emt
00:01:33]} 12. Qc2 {[%clk 01:11:33]} {[%emt 00:05:12]} Nxd3 {[%clk 01:17:04]}
{[%emt 00:00:55]} 13. Qxd3 {[%clk 01:11:55]} {[%emt 00:00:09]} Bf5 {[%clk
01:15:49]} {[%emt 00:01:45]} 14. Qe2 {[%clk 01:08:49]} {[%emt 00:03:36]} Nb5
{[%clk 01:11:12]} {[%emt 00:05:04]} 15. b4 {[%clk 01:00:31]} {[%emt 00:08:51]}
Nd6 {[%clk 01:08:18]} {[%emt 00:03:24]} 16. Rac1 {[%clk 00:57:03]} {[%emt
00:03:58]} Rc8 {[%clk 01:05:39]} {[%emt 00:03:09]} 17. Ne5 {[%clk 00:45:18]}
{[%emt 00:12:15]} f6 {[%clk 00:51:44]} {[%emt 00:14:26]} 18. Nd3 {[%clk
00:38:05]} {[%emt 00:07:42]} Bxd3 {[%clk 00:48:50]} {[%emt 00:03:24]} 19. Qxd3
{[%clk 00:38:09]} {[%emt 00:00:25]} e5 {[%clk 00:47:37]} {[%emt 00:01:44]} 20.
Rc2 {[%clk 00:33:41]} {[%emt 00:04:58]} e4 {[%clk 00:46:50]} {[%emt 00:01:16]}
21. Qb3 {[%clk 00:32:02]} {[%emt 00:02:07]} f5 {[%clk 00:41:25]} {[%emt
00:05:57]} 22. a4 {[%clk 00:30:12]} {[%emt 00:02:21]} a6 {[%clk 00:40:28]}
{[%emt 00:01:27]} 23. Rfc1 {[%clk 00:29:33]} {[%emt 00:01:08]} Kh8 {[%clk
00:39:01]} {[%emt 00:01:58]} 24. Ba3 {[%clk 00:27:13]} {[%emt 00:02:47]}
1/2-1/2

[Event "6e festival d'échecs d'Allauch"]
[Site "Allauch, France"]
[Date "2024.08.27"]
[Round "3.7"]
[White "Guillemin, Olivier"]
[Black "Siguret, William"]
[Result "0-1"]
[TimeControl "1 h 30 min (+30s/coup)"]
[WhiteElo "1597"]
[BlackElo "1671"]

1. e4 {[%clk 01:30:59]} d5 {[%clk 01:30:51]} {[%emt 00:00:10]} 2. exd5 {[%clk
01:31:24]} {[%emt 00:00:04]} Qxd5 {[%clk 01:31:12]} {[%emt 00:00:10]} 3. Nc3
{[%clk 01:31:48]} {[%emt 00:00:07]} Qd6 {[%clk 01:31:26]} {[%emt 00:00:15]} 4.
Bc4 {[%clk 01:32:07]} {[%emt 00:00:11]} e6 {[%clk 01:31:29]} {[%emt 00:00:27]}
5. d3 {[%clk 01:32:30]} {[%emt 00:00:08]} Nf6 {[%clk 01:31:48]} {[%emt
00:00:11]} 6. Nf3 {[%clk 01:32:34]} {[%emt 00:00:27]} Nbd7 {[%clk 01:31:55]}
{[%emt 00:00:22]} 7. O-O {[%clk 01:32:06]} {[%emt 00:00:58]} a6 {[%clk
01:32:00]} {[%emt 00:00:25]} 8. a3 {[%clk 01:31:45]} {[%emt 00:00:50]} b5
{[%clk 01:32:22]} {[%emt 00:00:08]} 9. Bb3 {[%clk 01:31:48]} {[%emt 00:00:27]}
Be7 {[%clk 01:32:17]} {[%emt 00:00:35]} 10. Re1 {[%clk 01:31:39]} {[%emt
00:00:40]} Bb7 {[%clk 01:32:22]} {[%emt 00:00:25]} 11. Bg5 {[%clk 01:30:54]}
{[%emt 00:01:15]} h6 {[%clk 01:31:32]} {[%emt 00:01:19]} 12. Bh4 {[%clk
01:31:15]} {[%emt 00:00:10]} Bd8 {[%clk 01:30:58]} {[%emt 00:01:03]} 13. Bg3
{[%clk 01:30:37]} {[%emt 00:01:08]} Qe7 {[%clk 01:31:05]} {[%emt 00:00:21]} 14.
d4 {[%clk 01:30:38]} {[%emt 00:00:31]} Nb6 {[%clk 01:30:21]} {[%emt 00:01:14]}
15. Bh4 {[%clk 01:29:00]} {[%emt 00:02:09]} O-O {[%clk 01:28:33]} {[%emt
00:02:18]} 16. d5 {[%clk 01:27:12]} {[%emt 00:02:18]} c5 {[%clk 01:27:37]}
{[%emt 00:01:24]} 17. d6 {[%clk 01:25:31]} {[%emt 00:02:12]} Qd7 {[%clk
01:27:14]} {[%emt 00:00:53]} 18. Ne5 {[%clk 01:24:47]} {[%emt 00:01:15]} Qc8
{[%clk 01:26:49]} {[%emt 00:00:55]} 19. Qd2 {[%clk 01:23:56]} {[%emt 00:01:21]}
c4 {[%clk 01:26:27]} {[%emt 00:00:52]} 20. Ba2 {[%clk 01:24:07]} {[%emt
00:00:19]} Nbd5 {[%clk 01:25:27]} {[%emt 00:01:29]} 21. b3 {[%clk 01:23:04]}
{[%emt 00:01:34]} cxb3 {[%clk 01:20:59]} {[%emt 00:04:58]} 22. Bxb3 {[%clk
01:22:40]} {[%emt 00:00:54]} Qxc3 {[%clk 01:20:40]} {[%emt 00:00:48]} 23. Qxc3
{[%clk 01:22:39]} {[%emt 00:00:31]} Nxc3 {[%clk 01:21:02]} {[%emt 00:00:09]} 24.
Bxf6 {[%clk 01:22:16]} {[%emt 00:00:52]} Bxf6 {[%clk 01:20:47]} {[%emt
00:00:45]} 25. Nd7 {[%clk 01:22:34]} {[%emt 00:00:12]} Rfd8 {[%clk 01:15:19]}
{[%emt 00:05:57]} 26. Nxf6+ {[%clk 01:22:09]} {[%emt 00:00:54]} gxf6 {[%clk
01:15:40]} {[%emt 00:00:10]} 27. Re3 {[%clk 01:21:18]} {[%emt 00:01:21]} Nd5
{[%clk 01:15:31]} {[%emt 00:00:39]} 28. Rg3+ {[%clk 01:20:09]} {[%emt
00:01:40]} Kh7 {[%clk 01:14:29]} {[%emt 00:01:31]} 29. c3 {[%clk 01:18:44]}
{[%emt 00:01:56]} Rxd6 {[%clk 01:11:52]} {[%emt 00:03:07]} 30. Bc2+ {[%clk
01:18:19]} {[%emt 00:00:55]} f5 {[%clk 01:12:04]} {[%emt 00:00:17]} 31. h3
{[%clk 01:18:28]} {[%emt 00:00:21]} Nf4 {[%clk 01:11:32]} {[%emt 00:01:02]} 32.
Kh2 {[%clk 01:15:58]} {[%emt 00:02:59]} Rd2 {[%clk 01:10:07]} {[%emt 00:01:54]}
33. Ra2 {[%clk 01:15:32]} {[%emt 00:00:58]} Rad8 {[%clk 01:09:58]} {[%emt
00:00:38]} 34. Bb3 {[%clk 01:14:39]} {[%emt 00:01:24]} Rxa2 {[%clk 01:10:10]}
{[%emt 00:00:18]} 35. Bxa2 {[%clk 01:15:03]} {[%emt 00:00:06]} Rd2 {[%emt
00:02:03]} 36. Bb1 {[%clk 01:13:05]} {[%emt 00:00:34]} Rb2 {[%clk 01:10:18]}
{[%emt 00:00:42]} 37. Bd3 {[%clk 01:10:20]} {[%emt 00:03:14]} Rxf2 {[%clk
01:09:26]} {[%emt 00:01:23]} 38. Bb1 {[%clk 01:06:29]} {[%emt 00:04:21]} Rxg2+
{[%clk 01:07:47]} {[%emt 00:02:08]} 39. Rxg2 {[%clk 01:06:45]} {[%emt
00:00:14]} Bxg2 {[%clk 01:07:57]} {[%emt 00:00:20]} 40. Kg3 {[%clk 01:06:33]}
{[%emt 00:00:42]} Be4 {[%clk 01:05:14]} {[%emt 00:03:10]} 41. Bxe4 {[%clk
01:05:44]} {[%emt 00:01:23]} Ne2+ {[%clk 01:05:28]} {[%emt 00:00:16]} 42. Kf2
{[%clk 01:05:53]} {[%emt 00:00:20]} fxe4 {[%clk 01:05:46]} {[%emt 00:00:13]} 43.
Kxe2 {[%clk 01:06:16]} {[%emt 00:00:07]} Kg6 {[%clk 01:05:55]} {[%emt
00:00:21]} 44. Kf2 {[%clk 01:06:36]} {[%emt 00:00:10]} Kg5 {[%clk 01:06:13]}
{[%emt 00:00:11]} 45. Kg2 {[%clk 01:06:55]} {[%emt 00:00:12]} h5 {[%clk
01:06:20]} {[%emt 00:00:24]} 46. Kg3 {[%clk 01:07:13]} {[%emt 00:00:12]} h4+
{[%clk 01:06:34]} {[%emt 00:00:16]} 47. Kf2 {[%clk 01:07:25]} {[%emt 00:00:17]}
Kf4 {[%clk 01:06:51]} {[%emt 00:00:12]} 48. Ke2 {[%clk 01:07:49]} {[%emt
00:00:07]} f5 {[%clk 01:06:39]} {[%emt 00:00:42]} 49. Kf2 {[%clk 01:08:10]}
{[%emt 00:00:09]} e5 {[%clk 01:06:55]} {[%emt 00:00:14]} 50. Ke2 {[%clk
01:08:32]} {[%emt 00:00:09]} Kg3 {[%clk 01:07:12]} {[%emt 00:00:12]} 51. Kf1
{[%clk 01:08:55]} {[%emt 00:00:08]} f4 {[%clk 01:07:09]} {[%emt 00:00:32]} 52.
Ke2 {[%clk 01:09:19]} {[%emt 00:00:07]} Kxh3 {[%clk 01:07:12]} {[%emt
00:00:27]} 53. Kf2 {[%clk 01:07:31]} {[%emt 00:02:19]} Kg4 {[%clk 01:07:32]}
{[%emt 00:00:09]} 54. Ke2 {[%clk 01:07:54]} {[%emt 00:00:07]} Kg3 {[%clk
01:07:42]} {[%emt 00:00:20]} 55. Kf1 {[%clk 01:08:16]} {[%emt 00:00:08]} h3
{[%clk 01:08:03]} {[%emt 00:00:09]} 56. Ke2 {[%clk 01:08:15]} {[%emt 00:00:31]}
Kg2 {[%clk 01:08:15]} {[%emt 00:00:18]} 57. Kd2 {[%clk 01:08:37]} {[%emt
00:00:08]} h2 {[%clk 01:08:40]} {[%emt 00:00:05]} 58. Kc2 {[%clk 01:09:02]}
{[%emt 00:00:05]} h1=Q {[%clk 01:08:55]} {[%emt 00:00:13]} 59. Kb3 {[%clk
01:09:29]} {[%emt 00:00:05]} Qb1# {[%clk 01:09:04]} {[%emt 00:00:15]} 0-1